{"text_format":"3","workbook":"xlsx","n_sheets":2,"sheets":["信息表","Sheet1"],"not_rendered":{"defined_names":3},"read":"whole","date_system":"1900"}

{"sheet":"信息表","index":0,"n_rows":90,"n_cols":19,"rows_kept":90,"merged":[[2,0,4,0],[2,1,4,1],[2,2,4,2],[2,3,4,3],[2,4,4,4],[2,5,4,5],[2,6,4,6],[2,7,4,7],[2,8,2,16],[2,17,4,17],[2,18,4,18],[3,8,4,8],[3,9,4,9],[3,10,4,10],[3,11,4,11],[3,12,4,12],[3,13,4,13],[3,14,4,14],[3,15,4,15],[3,16,4,16],[51,5,55,5],[51,18,55,18],[56,5,59,5],[56,18,59,18],[60,5,61,5],[60,18,61,18],[62,5,63,5],[62,18,63,18],[64,5,65,5],[64,18,65,18]]}
["附件1"]
["2021年大田县事业单位公开招聘工作人员岗位信息表"]
["序号","主管部门","招聘单位","经费\n方式","招聘岗位","岗位代码","招聘人数","笔试面试（含技能测试）成绩折算比例","岗位资格条件",{"$nulls":8},"联系信息","备注"]
[{"$nulls":8},"最高年龄","专业","学历","学位","政治\n面貌","性别","招聘\n对象","其他\n条件","笔试\n科目"]
[]
[{"$f":"ROW()-5","v":1},"大田县卫健局","大田县总医院\n（总院区）","财政\n核补","专技人员\n（急诊科）","170101",2,"紧缺专业免笔试",30,"临床医学、急诊医学、全科医学","本科及以上","学士及以上","不限","不限","应往届毕业生（本市机关事业单位在编在岗人员除外）",null,null,"余先生\n7267091","在县内最低服务年限5年"]
[2,"大田县卫健局","大田县总医院\n（总院区）","财政\n核补","专技人员\n（感疾科）","170102",1,"紧缺专业免笔试",30,"临床医学、预防医学、公共卫生与预防医学、转化医学","本科及以上","学士及以上","不限","不限","应往届毕业生（本市机关事业单位在编在岗人员除外）",null,null,"余先生\n7267091","在县内最低服务年限5年"]
[3,"大田县卫健局","大田县总医院\n（总院区）","财政\n核补","专技人员\n（心内科）","170103",1,"紧缺专业免笔试",30,"临床医学、内科学、中西医临床医学、中西医结合临床","本科及以上","学士及以上","不限","不限","应往届毕业生（本市机关事业单位在编在岗人员除外）",null,null,"余先生\n7267091","在县内最低服务年限5年"]
[4,"大田县卫健局","大田县总医院\n（总院区）","财政\n核补","专技人员\n（肾内科）","170104",1,"紧缺专业免笔试",30,"临床医学、内科学、中西医临床医学、中西医结合临床","本科及以上","学士及以上","不限","不限","应往届毕业生（本市机关事业单位在编在岗人员除外）",null,null,"余先生\n7267091","在县内最低服务年限5年"]
[5,"大田县卫健局","大田县总医院\n（总院区）","财政\n核补","专技人员\n（呼吸内科）","170105",1,"紧缺专业免笔试",30,"临床医学、内科学、中西医临床医学、中西医结合临床","本科及以上","学士及以上","不限","不限","应往届毕业生（本市机关事业单位在编在岗人员除外）",null,null,"余先生\n7267091","在县内最低服务年限5年"]
[6,"大田县卫健局","大田县总医院\n（总院区）","财政\n核补","专技人员\n（骨科）","170106",1,"紧缺专业免笔试",30,"临床医学、中医骨伤科学、外科学","本科及以上","学士及以上","不限","不限","应往届毕业生（本市机关事业单位在编在岗人员除外）",null,null,"余先生\n7267091","在县内最低服务年限5年"]
[7,"大田县卫健局","大田县总医院\n（总院区）","财政\n核补","专技人员\n（麻醉科）","170107",1,"紧缺专业免笔试",30,"麻醉学、临床医学、中西医临床医学、中西医结合临床","本科及以上","学士及以上","不限","不限","应往届毕业生（本市机关事业单位在编在岗人员除外）",null,null,"余先生\n7267091","在县内最低服务年限5年"]
[8,"大田县卫健局","大田县总医院\n（总院区）","财政\n核补","专技人员\n（五官科）","170108",1,"紧缺专业免笔试",30,"临床医学、眼科学、耳鼻咽喉科学、眼视光学（五年制）、口腔医学","本科及以上","学士及以上","不限","不限","应往届毕业生（本市机关事业单位在编在岗人员除外）",null,null,"余先生\n7267091","在县内最低服务年限5年"]
[9,"大田县卫健局","大田县总医院\n（总院区）","财政\n核补","专技人员\n（烧伤科）","170109",1,"紧缺专业免笔试",30,"临床医学、外科学、中西医临床医学、中西医结合临床","本科及以上","学士及以上","不限","不限","应往届毕业生（本市机关事业单位在编在岗人员除外）",null,null,"余先生\n7267091","在县内最低服务年限5年"]
[10,"大田县卫健局","大田县总医院\n（总院区）","财政\n核补","专技人员\n（B超室）","170110",1,"紧缺专业免笔试",30,"临床医学、医学影像学（五年制）、影像医学与核医学","本科及以上","学士及以上","不限","不限","应往届毕业生（本市机关事业单位在编在岗人员除外）",null,null,"余先生\n7267091","在县内最低服务年限5年"]
[11,"大田县卫健局","大田县总医院\n（总院区）","财政\n核补","专技人员\n（检验科）","170111",1,"紧缺专业免笔试",30,"医学检验技术、临床检验诊断学、医学检验、卫生检验与检疫（技术）、医学实验技术","本科及以上","学士及以上","不限","不限","应往届毕业生（本市机关事业单位在编在岗人员除外）",null,null,"余先生\n7267091","在县内最低服务年限5年"]
[12,"大田县卫健局","大田县总医院\n（总院区）","财政核补","专技人员（临床）","170112",2,"50:50",35,"临床医学类","本科及以上","学士及以上","不限","不限","不限",null,"医学基础知识","余先生\n7267091","在县内最低服务年限5年"]
[13,"大田县卫健局","大田县总医院\n（总院区）","财政核补","专技人员（临床）","170113",2,"50:50",35,"中医学和中西医结合类","本科及以上","学士及以上","不限","不限","不限",null,"医学基础知识","余先生\n7267091","在县内最低服务年限5年"]
[14,"大田县卫健局","大田县总医院\n（总院区）","财政核补","管理人员（办公室）","170114",1,"50:50",35,"中国语言文学类、法学类、卫生管理类","本科及以上","学士及以上","不限","不限","应届毕业生",null,"综合基础知识","余先生\n7267091","在县内最低服务年限5年"]
[15,"大田县卫健局","大田县总医院\n（总院区）","财政核补","管理人员（办公室）","170115",1,"50:50",35,"不限","大专及以上","不限","不限","不限","不限","面向在本县或本县生源服务基层项目,服务期满考核合格的高校毕业生","综合基础知识","余先生\n7267091","专门岗位\n在县内最低服务年限5年"]
[16,"大田县卫健局","大田县总医院\n（总院区）","财政核补","专技人员（医务科）","170116",1,"50:50",35,"卫生管理类、公共卫生与预防医学类","本科及以上","学士及以上","不限","不限","不限",null,"医学基础知识","余先生\n7267091","在县内最低服务年限5年"]
[17,"大田县卫健局","大田县总医院\n（总院区）","财政核补","专技人员（病案室）","170117",1,"50:50",35,"卫生管理类、公共卫生与预防医学类","本科及以上","学士及以上","不限","不限","不限",null,"医学基础知识","余先生\n7267091","在县内最低服务年限5年"]
[18,"大田县卫健局","大田县总医院\n（总院区）","财政核补","专技人员（ICU）","170118",1,"50:50",40,"护理学类","大专及以上","不限","不限","不限","不限","具有护师及以上执业资格证","护理专业知识","余先生\n7267091","在县内最低服务年限5年"]
[19,"大田县卫健局","大田县总医院\n（总院区）","财政核补","专技人员（ICU）","170119",1,"50:50",40,"护理学类","大专及以上","不限","不限","不限","不限","具有护士及以上执业资格证","护理专业知识","余先生\n7267091","在县内最低服务年限5年"]
[20,"大田县卫健局","大田县总医院\n（总院区）","财政核补","专技人员\n(临床护理)","170120",2,"50:50",40,"护理学类","大专及以上","不限","不限","不限","不限","具有护士及以上执业资格证","护理专业知识","余先生\n7267091","在县内最低服务年限5年"]
[21,"大田县卫健局","大田县总医院\n（总院区）","财政核补","专技人员\n(临床护理)","170121",1,"50:50",40,"助产、助产士","大专及以上","不限","不限","不限","不限","具有护士及以上执业资格证","护理专业知识","余先生\n7267091","在县内最低服务年限5年"]
[22,"大田县卫健局","大田县总医院\n南院区\n（中医院）","财政\n核补","专技人员\n（骨伤科）","170201",1,"紧缺专业免笔试",30,"中医学、中西医临床医学、中西医结合临床、中医骨伤科学","本科及以上","学士及以上","不限","不限","应往届毕业生（本市机关事业单位在编在岗人员除外）",null,null,"余先生\n7267091","在县内最低服务年限5年"]
[23,"大田县卫健局","大田县总医院\n南院区\n（中医院）","财政\n核补","专技人员\n（临床科室）","170202",1,"紧缺专业免笔试",30,"中医学、中西医临床医学、中西医结合临床、针灸推拿（学）、针灸学","本科及以上","学士及以上","不限","不限","应往届毕业生（本市机关事业单位在编在岗人员除外）",null,null,"余先生\n7267091","在县内最低服务年限5年"]
[24,"大田县卫健局","大田县疾病预防控制中心","财政核拨","专技人员（疾病控制）","170301",2,"紧缺专业免笔试 ",30,"公共卫生与预防医学类","本科及以上","学士及以上","不限","不限","应往届毕业生（本市机关事业单位在编在岗人员除外）",null,null,"余先生\n7267091","在县内最低服务年限5年"]
[25,"大田县卫健局","大田县疾病预防控制中心","财政核拨","专技人员（微生物检测）","170302",2,"紧缺专业免笔试 ",30,"卫生检验与检疫（技术）、医学生物技术、生物医学工程、医学实验技术、医学检验、医学检验技术","本科及以上","学士及以上","不限","不限","应往届毕业生（本市机关事业单位在编在岗人员除外）",null,null,"余先生\n7267091","在县内最低服务年限5年"]
[26,"大田县卫健局","大田县妇幼\n保健院","财政   核拨","专技人员（妇产科）","170401",1,"紧缺专业免笔试 ",30,"临床医学类","本科及以上","学士及以上","不限","不限","应往届毕业生（本市机关事业单位在编在岗人员除外）",null,null,"余先生\n7267091","在县内最低服务年限5年"]
[27,"大田县卫健局","大田县妇幼\n保健院","财政   核拨","专技人员（药剂科）","170402",1,"紧缺专业免笔试 ",30,"药学类、中药（学）","本科及以上","学士及以上","不限","不限","应往届毕业生（本市机关事业单位在编在岗人员除外）",null,null,"余先生\n7267091","在县内最低服务年限5年"]
[28,"大田县卫健局","大田县妇幼\n保健院","财政   核拨","专技人员（中医科）","170403",1,"紧缺专业免笔试 ",30,"中西医临床医学、中西结合临床、中医学","本科及以上","学士及以上","不限","不限","应往届毕业生（本市机关事业单位在编在岗人员除外）",null,null,"余先生\n7267091","在县内最低服务年限5年"]
[29,"大田县卫健局","大田县妇幼\n保健院","财政   核拨","专技人员（中医科）","170404",1,"紧缺专业免笔试 ",30,"针灸推拿（学）、中西医结合康复学、针灸学、中医康复学、中医康复技术","本科及以上","学士及以上","不限","不限","应往届毕业生（本市机关事业单位在编在岗人员除外）",null,null,"余先生\n7267091","在县内最低服务年限5年"]
[{"$f":"ROW()-5","v":30},"大田县卫健局","大田县妇幼\n保健院","经费自给","专技人员（临床）","170405",1,"50:50",35,"临床医学、急诊医学、全科医学","大专及以上","不限","不限","不限","不限",null,"医学基础知识","余先生\n7267091","在县内最低服务年限5年"]
[31,"大田县卫健局","大田县妇幼\n保健院","经费自给","专技人员（妇产科）","170406",2,"50:50",35,"助产、助产士","大专及以上","不限","不限","不限","不限","具有护士及以上执业资格证","护理专业知识","余先生\n7267091","在县内最低服务年限5年"]
[32,"大田县卫健局","大田县妇幼\n保健院","经费自给","专技人员（中医科）","170407",1,"50:50",35,"中医学、中西医临床医学、中西医结合临床","大专及以上","不限","不限","不限","不限",null,"医学基础知识","余先生\n7267091","在县内最低服务年限5年"]
[33,"大田县卫健局","大田县均溪社区卫生服务\n中心","财政\n核补","专技人员\n（B超室）","170501",1,"紧缺专业免笔试",30,"临床医学、医学影像学（五年制）、影像医学与核医学","本科及以上","学士及以上","不限","不限","应往届毕业生（本市机关事业单位在编在岗人员除外）",null,null,"余先生\n7267091","在县内最低服务年限5年"]
[34,"大田县卫健局","大田县梅山镇\n卫生院","财政核补","专技人员\n(临床护理)","170601",1,"50:50",35,"护理学类","中专(含中职、高中、技校)及以上","不限","不限","不限","不限","具有护士及以上执业资格证","护理专业知识","余先生\n7267091","在县内最低服务年限5年"]
[35,"大田县卫健局","乡镇卫生院","财政核拨","专技人员\n(公共卫生)","170701",2,"50:50",35,"公共卫生与预防医学类","大专及以上","不限","不限","不限","不限",null,"医学基础知识","余先生\n7267091","按总成绩从高到低由考生依次选岗（广平1人、梅山1人）。在县内最低服务年限5年"]
[36,"大田县卫健局","乡镇卫生院","财政核拨","专技人员（影像）","170702",2,"50:50",35,"临床医学、医学影像学（五年制）、医学影像技术、医学影像学（四年制）","大专及以上","不限","不限","不限","不限",null,"医学基础知识","余先生\n7267091","按总成绩从高到低由考生依次选岗（桃源1人、奇韬1人）。在县内最低服务年限5年"]
[37,"大田县卫健局","乡镇卫生院","财政核拨","专技人员（临床）","170703",7,"50:50",35,"临床医学类","大专及以上","不限","不限","不限","不限",null,"医学基础知识","余先生\n7267091","按总成绩从高到低由考生依次选岗（均溪1人、太华1人、广平2人、梅山1人、文江1人、济阳1人）。在县内最低服务年限5年"]
[38,"大田县卫健局","乡镇卫生院","财政核拨","专技人员（中医）","170704",4,"50:50",35,"中医学和中西医结合类","大专及以上","不限","不限","不限","不限",null,"医学基础知识","余先生\n7267091","按总成绩从高到低由考生依次选岗（均溪1人、广平1人、梅山2人）。在县内最低服务年限5年"]
[39,"大田县公安局","大田县网络\n生态治理保障\n中心","财政核拨","专技人员","170801",2,"50:50",30,"统计学类","本科及以上","学士及以上","不限","不限","应届毕业生",null,"综合基础知识","余先生\n7267091","在县内最低服务年限5年"]
[40,"大田县公安局","大田县网络\n生态治理保障\n中心","财政核拨","管理人员","170802",1,"50:50",35,"不限","大专及以上","不限","不限","不限","不限","面向在本县或本县生源服务基层项目,服务期满考核合格的高校毕业生","综合基础知识","余先生\n7267091","专门岗位\n在县内最低服务年限5年"]
[41,"大田县民政局","大田县婚姻\n登记中心","财政核拨","管理人员","170901",1,"50:50",35,"不限","大专及以上","不限","不限","不限","不限","面向在本县或本县生源服务基层项目,服务期满考核合格的高校毕业生","综合基础知识","余先生\n7267091","专门岗位\n在县内最低服务年限5年"]
[42,"大田县财政局","大田县财政\n投资评审中心","经费自给","专技人员","171001",1,"紧缺专业免笔试",30,"土建类","本科及以上","学士及以上","不限","男","应往届毕业生（本市机关事业单位在编在岗人员除外）",null,null,"余先生\n7267091","在县内最低服务年限5年"]
[43,"大田县财政局","大田县财政\n投资评审中心","经费自给","专技人员","171002",1,"紧缺专业免笔试",30,"土建类","本科及以上","学士及以上","不限","女","应往届毕业生（本市机关事业单位在编在岗人员除外）",null,null,"余先生\n7267091","在县内最低服务年限5年"]
[44,"大田县财政局","大田县财政\n投资评审中心","经费自给","专技人员","171003",1,"高级职称免笔试",45,"土建类","大专及以上","不限","不限","不限","不限","具有土建类副高级及以上专业技术职称",null,"余先生\n7267091","在县内最低服务年限5年"]
[45,"大田县自然\n资源局","大田县地产\n事务所","经费自给","管理人员","171101",1,"50:50",35,"不限","大专及以上","不限","不限","不限","不限","面向在本县或本县生源服务基层项目,服务期满考核合格的高校毕业生","综合基础知识","余先生\n7267091","专门岗位\n在县内最低服务年限5年"]
[46,"大田县住房和城乡建设局","大田县市容\n服务中心","财政核拨","管理人员","171201",1,"50:50",35,"法学类","本科及以上","学士及以上","不限","不限","不限","面向本县\n户籍人员\n(或生源)","综合基础知识","余先生\n7267091","在县内最低服务年限5年"]
[47," 大田县行政服务中心管委会 ","大田县12345便民服务中心","财政核拨","专技人员","171301",1,"50:50",35,"会计与审计类、财政金融类","本科及以上","学士及以上","不限","不限","不限",null,"综合基础知识","余先生\n7267091","按总成绩从高到低由考生依次选岗。在县内最低服务年限5年"]
[48,"大田县桃源镇人民政府","桃源镇乡村\n振兴综合服务中心","财政核拨","专技人员",null,1,"50:50",35,"会计与审计类、财政金融类","本科及以上","学士及以上","不限","不限","不限",null,"综合基础知识","余先生\n7267091","按总成绩从高到低由考生依次选岗。在县内最低服务年限5年"]
[49,"大田县谢洋乡人民政府","谢洋乡乡村\n振兴综合服务\n中心","财政核拨","专技人员",null,1,"50:50",35,"会计与审计类、财政金融类","本科及以上","学士及以上","不限","不限","不限",null,"综合基础知识","余先生\n7267091","按总成绩从高到低由考生依次选岗。在县内最低服务年限5年"]
[50,"大田县湖美乡人民政府","湖美乡村镇\n建设综合服务中心","财政核拨","专技人员",null,1,"50:50",35,"会计与审计类、财政金融类","本科及以上","学士及以上","不限","不限","不限",null,"综合基础知识","余先生\n7267091","按总成绩从高到低由考生依次选岗。在县内最低服务年限5年"]
[51,"大田县屏山乡人民政府","屏山乡村镇\n建设综合服务中心","财政核拨","专技人员\n",null,1,"50:50",35,"会计与审计类、财政金融类","本科及以上","学士及以上","不限","不限","不限",null,"综合基础知识","余先生\n7267091","按总成绩从高到低由考生依次选岗。在县内最低服务年限5年"]
[52,"大田县自然\n资源局","大田县不动产\n登记中心","财政核拨","专技人员","171401",2,"紧缺专业免笔试",30,"土建类","本科及以上","学士及以上","不限","不限","应往届毕业生（本市机关事业单位在编在岗人员除外）",null,null,"余先生\n7267091","按总成绩从高到低由考生依次选岗。在县内最低服务年限5年"]
[53,"大田县自然\n资源局","大田县土地\n整理中心","财政核拨","专技人员",null,1,"紧缺专业免笔试",30,"土建类","本科及以上","学士及以上","不限","不限","应往届毕业生（本市机关事业单位在编在岗人员除外）",null,null,"余先生\n7267091","按总成绩从高到低由考生依次选岗。在县内最低服务年限5年"]
[54,"大田县住房和城乡建设局","大田县建筑\n工程造价站","财政核拨","专技人员",null,1,"紧缺专业免笔试",30,"土建类","本科及以上","学士及以上","不限","不限","应往届毕业生（本市机关事业单位在编在岗人员除外）",null,null,"余先生\n7267091","按总成绩从高到低由考生依次选岗。在县内最低服务年限5年"]
[55,"大田县住房和城乡建设局","大田城市基本建设档案馆","财政核拨","专技人员",null,1,"紧缺专业免笔试",30,"土建类","本科及以上","学士及以上","不限","不限","应往届毕业生（本市机关事业单位在编在岗人员除外）",null,null,"余先生\n7267091","按总成绩从高到低由考生依次选岗。在县内最低服务年限5年"]
[56,"大田县水利局","大田县水利工程站","财政核拨","专技人员","171501",1,"50:50",35,"水利类","大专及以上","不限","不限","不限","不限",null,"综合基础知识","余先生\n7267091","按总成绩从高到低由考生依次选岗。在县内最低服务年限5年"]
[57,"大田县广平镇人民政府","广平镇村镇\n建设综合服务中心","财政核拨","专技人员",null,1,"50:50",35,"水利类","大专及以上","不限","不限","不限","不限",null,"综合基础知识","余先生\n7267091","按总成绩从高到低由考生依次选岗。在县内最低服务年限5年"]
[58,"大田县统计局","大田县统计\n信息中心","财政核拨","专技人员","171601",1,"50:50",35,"计算机科学与技术类","本科及以上","学士及以上","不限","不限","应届毕业生",null,"综合基础知识","余先生\n7267091","按总成绩从高到低由考生依次选岗。在县内最低服务年限5年"]
[59,"大田县文体和旅游局","大田县图书馆","财政核拨","专技人员",null,1,"50:50",35,"计算机科学与技术类","本科及以上","学士及以上","不限","不限","应届毕业生",null,"综合基础知识","余先生\n7267091","按总成绩从高到低由考生依次选岗。在县内最低服务年限5年"]
[60,"大田县桃源镇人民政府","桃源镇乡村\n振兴综合服务中心","财政核拨","专技人员","171701",1,"紧缺专业免笔试",30,"水利类、土建类","本科及以上","学士及以上","不限","不限","应往届毕业生（本市机关事业单位在编在岗人员除外）",null,null,"余先生\n7267091","按总成绩从高到低由考生依次选岗。在县内最低服务年限5年"]
[61,"大田县谢洋乡人民政府","谢洋乡村镇\n建设综合服务\n中心","财政核拨","专技人员",null,1,"紧缺专业免笔试",30,"水利类、土建类","本科及以上","学士及以上","不限","不限","应往届毕业生（本市机关事业单位在编在岗人员除外）",null,null,"余先生\n7267091","按总成绩从高到低由考生依次选岗。在县内最低服务年限5年"]
[62,"大田县水利局","大田县河务\n中心","财政核拨","管理人员","171801",1,"50:50",35,"中国语言文学类","本科及以上","学士及以上","不限","不限","不限",null,"综合基础知识","余先生\n7267091","在县内最低服务年限5年"]
[63,"大田县水利局","大田县坑口水库服务中心","经费自给","工勤人员","171901",1,"50:50",40,"不限","中专(含中职、高中、技校)及以上","不限","不限","不限","列入安置计划的随军家属",null,"综合基础知识","余先生\n7267091","专门岗位\n在县内最低服务年限5年"]
[64,"大田县水利局","大田县坑口水库服务中心","经费自给","专技人员","171902",1,"50:50",35,"环境生态类","大专及以上","不限","不限","不限","不限",null,"综合基础知识","余先生\n7267091","在县内最低服务年限5年"]
[{"$f":"ROW()-5","v":65},"大田县农业\n农村局","大田县茶业\n发展促进中心","财政核拨","专技人员","172001",2,"50:50",35,"植物生产类","本科及以上","学士及以上","不限","不限","不限",null,"综合基础知识","余先生\n7267091","在县内最低服务年限5年"]
[66,"大田县农业\n农村局","大田县食用菌技术推广站","财政核拨","专技人员","172101",1,"50:50",35,"植物生产类、食品科学与工程类","本科及以上","学士及以上","不限","不限","应届毕业生",null,"综合基础知识","余先生\n7267091","在县内最低服务年限5年"]
[67,"大田县农业\n农村局","大田县市场与经济信息工作站","财政核拨","专技人员","172201",1,"50:50",35,"工商管理类","本科及以上","学士及以上","不限","不限","不限",null,"综合基础知识","余先生\n7267091","在县内最低服务年限5年"]
[68,"大田县农业\n农村局","大田县均溪镇\n兽医站","财政核拨","专技人员","172301",1,"50:50",35,"动物医学类、动物生产类","本科及以上","学士及以上","不限","不限","应届毕业生",null,"综合基础知识","余先生\n7267091","在县内最低服务年限5年"]
[69,"大田县农业\n农村局","大田县奇韬镇\n兽医站","财政核拨","专技人员","172401",1,"50:50",35,"动物医学类、动物生产类","本科及以上","学士及以上","不限","不限","不限",null,"综合基础知识","余先生\n7267091","在县内最低服务年限5年"]
[70,"大田县农业\n农村局","大田县梅山镇\n兽医站","财政核拨","管理人员","172501",1,"50:50",35,"不限","大专及以上","不限","不限","不限","不限","面向在本县或本县生源服务基层项目,服务期满考核合格的高校毕业生","综合基础知识","余先生\n7267091","专门岗位\n在县内最低服务年限5年"]
[71,"大田县商务局","大田县招商\n服务中心","财政核拨","管理人员","172601",1,"50:50",35,"经济贸易类","本科及以上","学士及以上","不限","不限","应届毕业生",null,"综合基础知识","余先生\n7267091","在县内最低服务年限5年"]
[72,"大田县文体和旅游局","大田县少年\n儿童业余体育\n学校","财政核拨","管理人员","172701",1,"50:50",35,"不限","大专及以上","不限","不限","不限","不限","面向在本县或本县生源服务基层项目,服务期满考核合格的高校毕业生","综合基础知识","余先生\n7267091","专门岗位\n在县内最低服务年限5年"]
[73,"大田县文体和旅游局","大田县文物\n保护中心","财政核拨","管理人员","172801",1,"50:50",35,"历史学类、中国语言文学类、法学类","本科及以上","学士及以上","不限","不限","不限","面向本县\n户籍人员\n(或生源)","综合基础知识","余先生\n7267091","在县内最低服务年限5年"]
[74,"大田县审计局","大田县乡镇\n审计中心","财政核拨","专技人员","172901",1,"50:50",35,"会计与审计类、财政金融类","本科及以上","学士及以上","不限","男","不限",null,"综合基础知识","余先生\n7267091","在县内最低服务年限5年"]
[75,"大田县审计局","大田县乡镇\n审计中心","财政核拨","专技人员","172902",1,"50:50",35,"会计与审计类、财政金融类","本科及以上","学士及以上","不限","女","不限",null,"综合基础知识","余先生\n7267091","在县内最低服务年限5年"]
[76,"大田县市场监督管理局","大田县质量\n计量检测所","财政核拨","专技人员","173001",1,"50:50",35,"材料类","本科及以上","学士及以上","不限","不限","不限",null,"综合基础知识","余先生\n7267091","在县内最低服务年限5年"]
[77,"大田县市场\n监督管理局","大田县质量\n计量检测所","财政核拨","专技人员","173002",1,"50:50",35,"化学类","本科及以上","学士及以上","不限","不限","不限",null,"综合基础知识","余先生\n7267091","在县内最低服务年限5年"]
[78,"大田县市场监督管理局","大田县食品\n检验检测中心","财政核拨","专技人员\n(理化检测)","173101",1,"紧缺专业免笔试",30,"食品科学与工程、食品工程、食品科学、食品质量与安全、食品营养与检测","本科及以上","学士及以上","不限","不限","应往届毕业生（本市机关事业单位在编在岗人员除外）",null,null,"余先生\n7267091","在县内最低服务年限5年"]
[79,"中共大田县委","中共大田县委\n党校","财政核拨","专技人员（教师）","173201",1,"50:50",35,"哲学类、政治学类、经济贸易类、马克思主义理论类","本科及以上","学士及以上","不限","不限","不限",null,"综合基础知识","余先生\n7267091","在县内最低服务年限5年"]
[80,"大田县前坪乡人民政府","前坪乡村镇\n建设综合服务\n中心","财政核拨","专技人员","173301",1,"紧缺专业免笔试",30,"农业经济管理类","本科及以上","学士及以上","不限","不限","应往届毕业生（本市机关事业单位在编在岗人员除外）",null,null,"余先生\n7267091","在县内最低服务年限5年"]
[81,"大田县文江镇人民政府","文江镇村镇\n建设综合服务\n中心","财政核拨","管理人员","173401",1,"50:50",35,"不限","大专及以上","不限","不限","不限","不限","面向在本县或本县生源服务基层项目,服务期满考核合格的高校毕业生","综合基础知识","余先生\n7267091","专门岗位\n在县内最低服务年限5年"]
[82,"大田县梅山镇人民政府","梅山镇村镇\n建设综合服务中心","财政核拨","管理人员","173501",1,"50:50",35,"不限","大专及以上","不限","不限","不限","不限","面向三明籍退役士兵或从三明市应征入伍的退役大学生士兵","综合基础知识","余先生\n7267091","专门岗位\n在县内最低服务年限5年"]
[83,"大田县屏山乡人民政府","屏山乡村镇\n建设综合服务中心","财政核拨","专技人员","173601",1,"50:50",35,"旅游餐饮类","本科及以上","学士及以上","不限","不限","不限","面向本设区市户籍人员\n(或生源)","综合基础知识","余先生\n7267091","在县内最低服务年限5年"]
[84,"大田县建设镇人民政府","建设镇村镇\n建设综合服务中心","财政核拨","专技人员","173701",1,"50:50",35,"环境生态类、环境安全技术类","本科及以上","学士及以上","不限","不限","应届毕业生",null,"综合基础知识","余先生\n7267091","在县内最低服务年限5年"]
[{"$nulls":6},{"$f":"SUBTOTAL(9,G6:G89)","v":105}]

{"sheet":"Sheet1","index":1,"n_rows":45,"n_cols":4,"rows_kept":45}
[{"$nulls":3},"大田县总医院\n（总院区）"]
[{"$nulls":3},"大田县总医院\n南院区\n（中医院）"]
[{"$nulls":3},"大田县疾病预防控制中心"]
[{"$nulls":3},"大田县妇幼\n保健院"]
[{"$nulls":3},"大田县均溪社区卫生服务中心"]
[{"$nulls":3},"大田县梅山镇\n卫生院"]
[{"$nulls":3},"乡镇卫生院"]
[{"$nulls":3},"大田县网络\n生态治理保障\n中心"]
[{"$nulls":3},"大田县婚姻\n登记中心"]
[{"$nulls":3},"大田县财政\n投资评审中心"]
[{"$nulls":3},"大田县地产\n事务所"]
[{"$nulls":3},"大田县市容\n服务中心"]
[{"$nulls":3},"大田县12345便民服务中心"]
[{"$nulls":3},"桃源镇乡村\n振兴综合服务中心"]
[{"$nulls":3},"谢洋乡乡村\n振兴综合服务\n中心"]
[{"$nulls":3},"湖美乡村镇\n建设综合服务中心"]
[{"$nulls":3},"屏山乡村镇\n建设综合服务中心"]
[{"$nulls":3},"大田县不动产\n登记中心"]
[{"$nulls":3},"大田县土地\n整理中心"]
[{"$nulls":3},"大田县建筑\n工程造价站"]
[{"$nulls":3},"大田城市基本建设档案馆(挂建设工程消防技术保障服务中心)"]
[{"$nulls":3},"大田县水利工程站（挂大田县水旱灾害防御工作站牌子）"]
[{"$nulls":3},"广平镇村镇\n建设综合服务中心"]
[{"$nulls":3},"大田县统计\n信息中心"]
[{"$nulls":3},"大田县图书馆"]
[{"$nulls":3},"谢洋乡村镇\n建设综合服务\n中心"]
[{"$nulls":3},"大田县河务\n中心"]
[{"$nulls":3},"大田县坑口水库服务中心"]
[{"$nulls":3},"大田县茶业\n发展促进中心"]
[{"$nulls":3},"大田县食用菌技术推广站"]
[{"$nulls":3},"大田县市场与经济信息工作站"]
[{"$nulls":3},"大田县均溪镇\n兽医站"]
[{"$nulls":3},"大田县奇韬镇\n兽医站"]
[{"$nulls":3},"大田县梅山镇\n兽医站"]
[{"$nulls":3},"大田县招商\n服务中心"]
[{"$nulls":3},"大田县少年\n儿童业余体育\n学校"]
[{"$nulls":3},"大田县文物\n保护中心"]
[{"$nulls":3},"大田县乡镇\n审计中心"]
[{"$nulls":3},"大田县质量\n计量检测所"]
[{"$nulls":3},"大田县食品\n检验检测中心"]
[{"$nulls":3},"中共大田县委\n党校"]
[{"$nulls":3},"前坪乡村镇\n建设综合服务\n中心"]
[{"$nulls":3},"文江镇村镇\n建设综合服务\n中心"]
[{"$nulls":3},"梅山镇村镇\n建设综合服务中心"]
[{"$nulls":3},"建设镇村镇\n建设综合服务中心"]